bitfinex-derivatives/quotes_ETHF0:USTF0_20250912
["timestamp","ask_amount","ask_price","bid_price","bid_amount"]
[1757679926134,0.2213,4516.2,4516.1,3.9135]
[1757679926426,0.2213,4516.2,4516.1,8.1395]
[1757679926619,0.7362,4517.2,4517.1,0.7057]
[1757679926825,0.9274,4517.2,4517.1,1.02237585]
[1757679927124,0.9274,4517.2,4517.1,0.7057]
[1757679927927,0.9274,4517.2,4517.1,1.02241205]
[1757679928228,0.7014,4517.2,4517.1,1.02241205]
[1757679928432,0.5102,4517.2,4517.1,1.02241205]
[1757679928627,0.2954,4517.8,4517.3,0.3053]
[1757679928826,0.5214,4517.7,4517.6,0.7099]
[1757679929022,0.226,4517.7,4517.6,1.02661205]
[1757679929331,0.5214,4518.3,4518.1,0.3053]
[1757679929525,0.226,4518.3,4518.2,1.02661205]
[1757679929724,0.7167,4518.3,4518.2,1.02661205]
[1757679930227,0.9219,4518.3,4518.2,1.02661205]
[1757679930618,0.9219,4518.3,4518.2,0.72131205]
[1757679932732,0.9219,4518.3,4518.2,1.02661205]
[1757679935835,0.7167,4518.3,4518.2,1.02661205]
[1757679936630,0.7167,4518.3,4518.2,0.7099]
[1757679936938,0.4907,4518.7,4518.6,0.4046]
[1757679937137,0.4907,4518.7,4518.6,1.02645233]
[1757679937338,0.6959,4518.7,4518.6,1.02645233]
[1757679938135,0.2954,4518.7,4518.6,1.02645233]
[1757679938437,0.4907,4518.7,4518.6,1.02645233]
[1757679938834,0.6959,4518.7,4518.6,1.02645233]
[1757679940238,0.6959,4518.7,4518.6,4.50410845]
[1757679940432,0.6959,4518.7,4518.6,4.23425233]
[1757679941130,0.226,4518.9,4518.6,4.23425233]
[1757679941131,0.2954,4518.9,4518.8,0.4046]
[1757679941329,0.2954,4518.9,4518.8,1.02645233]
[1757679941936,0.4907,4518.9,4518.8,1.02010077]
[1757679942245,0.6959,4518.9,4518.8,1.02010077]
[1757679943034,0.6959,4518.9,4518.8,0.71480077]
[1757679943837,1.25122626,4518.9,4518.8,0.71480077]
[1757679944740,1.25122626,4518.9,4518.8,1.02010077]
[1757679945335,0.3149,4520.0,4519.9,0.3924]
[1757679945640,0.5201,4520.0,4519.9,3.68864358]
[1757679945842,0.5201,4520.0,4519.9,0.31014358]
[1757679947337,0.8155,4520.0,4519.9,0.31014358]
[1757679947938,0.8155,4520.0,4519.9,3.51794358]
[1757679948443,0.6103,4520.0,4519.9,3.51794358]
[1757679948951,0.415,4520.0,4519.9,3.51794358]
[1757679949247,0.6103,4520.0,4519.9,3.51794358]
[1757679949438,0.6103,4520.0,4519.9,3.51782389]
[1757679950039,0.8155,4520.0,4519.9,3.51782389]
[1757679950744,0.8155,4520.0,4519.9,3.51788107]
[1757679955349,0.8155,4520.0,4519.9,0.31008107]
[1757679957044,0.8155,4520.0,4519.9,0.31070305]
[1757679957246,1.4101092,4520.0,4519.9,0.31070305]
[1757679960054,5.63134921,4520.0,4519.9,3.05e-06]
[1757679960844,0.2997,4518.9,4518.8,3.2078]
[1757679961045,1.2973092,4518.9,4518.8,3.2078]
[1757679961653,1.2973092,4518.9,4518.8,3.4195]
[1757679962254,1.2973092,4518.9,4518.8,3.6306]
[1757679963054,0.8943092,4518.9,4518.8,3.8407]
[1757679967959,0.5946092,4518.9,4518.8,3.8407]
[1757679968155,0.1259,4519.5,4518.9,0.4228]
[1757679968358,0.89552054,4519.4,4519.3,0.6329]
[1757679969162,1.09932054,4519.4,4519.3,0.6329]
[1757679971756,1.29852054,4519.4,4519.3,0.4228]
[1757679972456,1.29852054,4519.4,4519.0,0.226]
[1757679972667,0.7027,4519.4,4519.3,0.2117]
[1757679972858,1.29888275,4519.4,4519.3,0.2117]
[1757679974560,1.29888275,4519.4,4519.0,0.226]
[1757679974762,0.7027,4519.1,4519.0,0.6488]
[1757679974962,1.29888275,4519.1,4519.0,0.6488]
[1757679975163,1.29888275,4519.1,4519.0,0.8589]
[1757679975362,1.09968275,4519.1,4519.0,0.8589]
[1757679975665,0.89588275,4519.1,4519.0,0.8589]
[1757679976564,1.09968275,4519.1,4519.0,0.8589]
[1757679976757,1.29888275,4519.1,4519.0,0.6488]
[1757679984274,1.29888275,4519.1,4519.0,0.8589]
[1757679984867,0.59618275,4519.1,4519.0,0.8589]
[1757679985068,0.1259,4519.5,4519.2,0.4228]
[1757679985069,0.59720192,4519.3,4519.2,0.4228]
[1757679985269,0.5035,4519.3,4519.2,0.6329]
[1757679985470,1.10077555,4519.3,4519.2,0.6329]
[1757679986765,0.89697555,4519.3,4519.2,0.6329]
[1757679987266,1.10077555,4519.3,4519.2,0.6329]
[1757679987960,1.10077555,4519.3,4519.2,0.4228]
[1757679988164,1.31087555,4519.3,4519.2,0.4228]
[1757679988465,1.31087555,4519.3,4519.0,0.226]
[1757679988670,0.4983,4519.1,4519.0,0.6291]
[1757679988869,1.09557555,4519.1,4519.0,0.8265]
[1757679989770,1.30567555,4519.1,4519.0,0.6164]
[1757679994776,1.09557555,4519.1,4519.0,0.8265]
[1757679994976,1.30567555,4519.1,4519.0,0.419]
[1757679999473,1.30567555,4519.1,4519.0,0.8265]
[1757680000586,1.09557555,4519.1,4519.0,0.8265]
[1757680001486,1.30567555,4519.1,4519.0,0.419]
[1757680002178,1.30567555,4519.1,4519.0,0.226]
[1757680003481,1.30567555,4519.1,4519.0,0.419]
[1757680005383,1.30567555,4519.1,4519.0,0.226]
[1757680007185,0.4084,4518.9,4518.8,3.2078]
[1757680007479,1.30567555,4518.9,4518.8,3.4318]
[1757680008984,1.30567555,4518.9,4518.8,3.6248]
[1757680010085,1.30567555,4518.9,4518.8,3.8222]
[1757680011675,1.09557555,4518.9,4518.8,4.0323]
[1757680013585,1.30567555,4518.9,4518.8,3.8222]
[1757680015480,1.30567555,4518.9,4518.8,4.0323]
[1757680015892,1.30567555,4518.9,4518.8,3.8222]
[1757680016284,0.89727555,4518.9,4518.8,4.0323]
[1757680016685,1.09557555,4518.9,4518.8,4.0323]
[1757680017692,1.30567555,4518.9,4518.8,3.8222]
[1757680020881,1.30567555,4518.9,4518.8,3.4318]
[1757680021290,1.30567555,4518.9,4518.8,3.6252]
[1757680021587,0.89727555,4518.9,4518.8,4.0336]
[1757680028193,1.09237555,4518.9,4518.8,4.0336]
[1757680029499,1.28857555,4518.9,4518.8,3.8245]
[1757680030395,1.28857555,4518.9,4518.8,4.13045004]
[1757680037609,1.28498192,4518.9,4518.8,4.13045004]
[1757680038101,1.28498192,4518.9,4518.8,4.33955004]
[1757680038806,1.28498192,4518.9,4518.8,4.11555004]
[1757680039004,1.28498192,4518.9,4518.8,4.33955004]
[1757680039306,1.28498192,4518.9,4518.8,4.33956631]
[1757680041208,1.28498192,4518.9,4518.8,4.13046631]
[1757680042606,1.28498192,4518.9,4518.8,4.33956631]
[1757680042807,1.08878192,4518.9,4518.8,4.33956631]
[1757680045810,1.08878192,4518.9,4518.8,4.33956727]
[1757680047913,1.28498192,4518.9,4518.8,3.73776727]
[1757680048115,1.28498192,4518.9,4518.8,4.14436727]
[1757680048412,1.28498192,4518.9,4518.8,4.049]
[1757680048814,1.28498192,4518.9,4518.8,4.35498023]
[1757680049008,1.08878192,4518.9,4518.8,4.049]
[1757680049512,0.89368192,4518.9,4518.8,4.35497989]
[1757680050818,0.89638192,4518.9,4518.8,4.35497989]
[1757680051814,0.0663,4519.1,4518.8,8.97451989]
[1757680052012,0.3027,4519.6,4519.5,0.4066]
[1757680052212,0.3027,4519.6,4519.5,4.35497989]
[1757680052417,0.7198,4519.6,4519.5,3.92037989]
[1757680052617,0.7198,4519.6,4519.5,4.14437989]
[1757680053214,0.7198,4519.6,4519.5,3.93776052]
[1757680057118,0.94106,4519.6,4519.5,3.51366052]
[1757680057719,0.7198,4519.6,4519.5,3.51366052]
[1757680058532,0.7198,4519.6,4519.5,0.30586052]
[1757680059719,0.0569,4520.4,4520.3,0.6172]
[1757680059918,0.0569,4520.4,4520.3,4.13086052]
[1757680060124,0.3981,4520.5,4520.3,0.92306052]
[1757680060423,0.3027,4520.5,4520.4,0.6172]
[1757680060619,0.5135,4520.5,4520.4,0.6172]
[1757680060826,0.6355,4520.5,4520.4,0.6172]
[1757680061717,0.8418,4520.5,4520.4,0.4066]
[1757680061916,0.8418,4520.5,4520.4,3.6144]
[1757680064016,1.4377394,4520.5,4520.4,3.6144]
[1757680064221,0.7198,4519.9,4519.8,3.2078]
[1757680064524,0.3027,4519.4,4519.3,3.2078]
[1757680064725,0.70089,4519.4,4519.3,3.2078]
[1757680066019,0.122,4519.5,4519.3,3.2078]
[1757680066320,0.82289,4519.5,4519.3,3.2078]
[1757680066525,0.39819,4519.5,4519.3,3.2078]
[1757680066725,0.122,4520.0,4519.3,3.2078]
[1757680066913,0.39815,4519.9,4519.8,3.2078]
[1757680067217,0.122,4520.0,4519.8,3.2078]
[1757680067417,0.3027,4519.9,4519.8,3.2078]
[1757680069523,0.122,4520.0,4519.9,0.39815]
[1757680069826,0.4247,4520.0,4519.9,0.39815]
[1757680071129,0.52005,4521.0,4520.4,0.3981]
[1757680071321,0.52005,4521.0,4520.4,3.6059]
[1757680072120,0.122,4521.0,4520.4,3.6059]
[1757680072821,0.122,4521.0,4520.4,7.6059]
[1757680073022,0.122,4521.0,4520.8,0.39806]
[1757680073223,0.4247,4521.0,4520.9,3.2078]
[1757680074423,0.122,4521.0,4520.9,7.2078]
[1757680075738,0.4247,4521.5,4520.9,7.2078]
[1757680076032,0.122,4521.5,4521.4,3.2078]
[1757680076530,0.4247,4521.5,4521.4,3.2078]
[1757680077636,0.122,4521.5,4521.4,3.2078]
[1757680077832,0.4318,4521.5,4521.4,3.2078]
[1757680078734,0.122,4521.5,4521.4,3.2078]
[1757680079026,0.4318,4521.5,4521.4,3.2078]
[1757680079625,0.1165,4521.5,4521.4,9.36473811]
[1757680079825,0.4263,4521.5,4521.4,9.36473811]
[1757680080834,0.1165,4521.5,4521.4,9.36473811]
[1757680082326,0.4263,4521.5,4521.4,9.36473811]
[1757680082833,0.4263,4521.5,4521.4,3.2078]
[1757680083326,0.628,4521.5,4521.4,3.2078]
[1757680083525,0.4263,4521.5,4521.4,4.98689078]
[1757680083734,0.8238,4521.5,4521.4,4.98689078]
[1757680084338,0.628,4521.5,4521.4,4.98689078]
[1757680084533,0.8238,4521.5,4521.4,3.2078]
[1757680088535,0.628,4521.5,4521.4,3.2078]
[1757680088736,0.8238,4521.5,4521.4,3.2078]
[1757680090336,0.8238,4521.5,4521.4,3.51908728]
[1757680092543,0.8238,4521.5,4521.4,0.31128728]
[1757680093534,4.8238,4521.5,4521.4,0.31128728]
[1757680093946,0.1165,4521.5,4521.4,3.51908728]
[1757680094237,0.514,4521.5,4521.4,3.51908728]
[1757680095132,0.1165,4521.5,4521.4,3.51908728]
[1757680095440,0.3778,4522.0,4521.4,3.91709728]
[1757680095636,0.3778,4522.0,4521.5,0.70928728]
[1757680095837,0.3098,4521.9,4521.6,0.70927728]
[1757680096035,0.3778,4522.0,4521.7,0.31128728]
[1757680096351,0.7073,4521.9,4521.8,0.31128728]
[1757680097144,0.3098,4521.9,4521.8,0.31128728]
[1757680098029,0.3098,4521.9,4521.8,0.30450682]
[1757680098633,0.4263,4522.5,4522.4,0.39793]
[1757680098835,0.4263,4522.5,4522.4,3.51230682]
[1757680099044,0.8238,4522.5,4522.4,3.51230682]
[1757680099843,1.40293304,4522.5,4522.4,0.30450682]
[1757680102843,0.628,4522.5,4522.4,0.30450682]
[1757680104140,0.8238,4522.5,4522.4,0.30450682]
[1757680109146,5.62785136,4522.5,4521.7,3.2078]
[1757680109343,0.122,4523.0,4520.0,0.0953]
[1757680109344,0.402,4521.8,4521.1,0.3126]
[1757680109647,4.58293136,4522.4,4520.0,0.0953]
[1757680109648,0.58293136,4521.7,4520.0,0.0953]
[1757680109845,1.19202155,4521.2,4519.5,0.118]
[1757680110040,1.19202155,4520.8,4519.5,0.118]
[1757680110248,1.58936206,4520.3,4518.0,0.118]
[1757680110545,1.18261005,4519.0,4517.5,0.118]
[1757680110749,0.58293136,4518.9,4517.6,0.3126]
[1757680110944,0.58293136,4518.8,4517.6,0.3126]
[1757680111144,0.58293136,4518.7,4517.6,0.3126]
[1757680111351,0.58293136,4518.6,4518.5,0.118]
[1757680111538,0.58293136,4518.6,4518.5,0.4306]
[1757680112147,0.58293136,4518.6,4518.5,0.8265]
[1757680112348,0.0663,4518.7,4518.5,0.8265]
[1757680112547,0.0663,4518.7,4518.6,0.3126]
[1757680113054,0.0663,4518.7,4518.6,0.5067]
[1757680113250,0.0663,4518.7,4518.6,0.7085]
[1757680113553,1.18261005,4521.7,4518.7,0.3126]
[1757680113750,1.76906116,4521.6,4518.7,0.3126]
[1757680114057,0.03851528,4521.2,4518.7,0.3126]
[1757680114245,0.58645111,4521.1,4518.7,0.3126]
[1757680114447,3.2078,4519.6,4519.5,0.8265]
[1757680114649,3.2078,4520.6,4520.5,0.118]
[1757680114847,3.2078,4520.6,4520.5,0.4306]
[1757680117550,3.2078,4521.6,4521.5,0.4306]
[1757680119552,3.2078,4522.1,4522.0,0.118]
[1757680119850,3.2078,4522.1,4522.0,0.4306]
[1757680122049,3.2078,4522.1,4522.0,0.8265]
[1757680122444,3.2078,4522.1,4522.0,0.4306]
[1757680123455,3.2078,4522.1,4522.0,0.8265]
[1757680124143,3.2078,4522.1,4522.0,0.4306]
[1757680126249,7.2078,4522.1,4522.0,0.4306]
[1757680127354,3.2078,4522.1,4522.0,0.8265]
[1757680130262,3.2078,4522.1,4522.0,0.6247]
[1757680131265,3.2078,4522.1,4522.0,0.8265]
[1757680132166,3.2078,4522.7,4522.6,0.3959]
[1757680132462,3.4388,4522.7,4522.6,0.7085]
[1757680132858,0.0513,4522.8,4522.6,0.7085]
[1757680133065,0.0513,4522.8,4522.7,0.7085]
[1757680134056,0.231,4523.2,4523.0,0.118]
[1757680134261,0.231,4523.2,4523.1,0.5067]
[1757680134660,4.231,4523.2,4523.1,0.3126]
[1757680135258,0.231,4523.2,4523.1,0.3126]
[1757680138063,4.231,4523.2,4523.0,0.118]
[1757680138259,4.231,4523.2,4522.6,0.3067]
[1757680138260,0.58640305,4523.1,4522.6,0.3067]
[1757680138461,3.2078,4522.7,4522.6,0.3067]
[1757680138667,3.4388,4522.7,4522.6,0.3067]
[1757680138965,7.4388,4522.7,4522.6,0.3067]
[1757680140158,7.4388,4522.7,4522.0,0.118]
[1757680140159,8.02536171,4522.7,4522.0,0.118]
[1757680140359,3.2078,4522.1,4522.0,0.118]
[1757680140561,4.02436171,4522.1,4522.0,0.4247]
[1757680140769,21.22436171,4522.1,4522.0,0.118]
[1757680140964,25.22436171,4522.1,4521.5,0.118]
[1757680141168,3.2078,4521.6,4521.2,0.3067]
[1757680141468,3.2078,4521.6,4521.0,0.1201]
[1757680141469,0.81756171,4521.5,4521.0,0.1201]
[1757680141658,3.2078,4521.1,4521.0,0.1201]
[1757680141862,4.02536171,4521.1,4521.0,0.1201]
[1757680142060,4.02536171,4521.1,4521.0,0.4268]
[1757680143267,8.02536171,4521.1,4521.0,0.4268]
[1757680143467,8.02536171,4521.1,4520.5,0.1201]
[1757680143672,3.2078,4520.6,4520.5,0.4268]
[1757680143966,4.02436171,4520.6,4520.5,0.4268]
[1757680146371,4.02436171,4520.6,4520.5,0.8304]
[1757680148173,4.02436171,4520.6,4520.5,0.4268]
[1757680148671,8.02436171,4520.6,4520.5,0.1201]
[1757680148873,8.02436171,4520.6,4520.1,0.3067]
[1757680149074,0.58656171,4520.5,4520.0,0.1201]
[1757680149272,3.2078,4520.1,4520.0,0.4268]
[1757680149474,4.02436171,4520.1,4520.0,0.4268]
[1757680154074,4.02436171,4520.1,4520.0,0.6363]
[1757680154279,4.02436171,4520.1,4520.0,0.8304]
[1757680154576,4.02436171,4520.1,4520.0,0.6363]
[1757680155575,4.02436171,4520.1,4520.0,0.4268]
[1757680156477,4.02436171,4520.1,4520.0,0.6363]
[1757680156678,4.02436171,4520.1,4520.0,0.8304]
[1757680158377,3.2078,4520.1,4520.0,0.8304]
[1757680158678,3.4368,4520.1,4520.0,0.8304]
[1757680161879,3.2078,4520.1,4520.0,0.8304]
[1757680162080,3.4368,4520.1,4520.0,0.8304]
[1757680163585,3.2078,4520.1,4520.0,0.8304]
[1757680163776,3.4368,4520.1,4520.0,0.8304]
[1757680169378,3.4368,4520.1,4520.0,0.6363]
[1757680170282,3.4368,4520.1,4520.0,0.8383]
[1757680171487,3.2078,4520.7,4520.5,0.1204]
[1757680171682,3.2078,4520.7,4520.1,0.3166]
[1757680171683,0.4977,4520.6,4520.1,0.3166]
[1757680171883,0.3965,4520.1,4520.0,0.8344]
[1757680173389,0.229,4520.3,4520.2,0.3977]
[1757680173586,0.229,4520.3,4520.2,0.7143]
[1757680175292,0.4224,4520.3,4520.2,0.7143]
[1757680178286,0.228,4520.6,4520.5,0.1204]
[1757680178489,0.228,4520.6,4520.5,0.8347]
[1757680180092,3.2078,4520.7,4520.5,0.5181]
[1757680180296,3.2078,4520.7,4520.6,0.3166]
[1757680180998,3.2078,4520.7,4520.6,0.7143]
[1757680181590,3.2078,4520.7,4520.5,0.1204]
[1757680181591,0.1934,4521.1,4521.0,0.8347]
[1757680182693,3.4358,4521.3,4521.1,0.3166]
[1757680182992,3.4358,4521.3,4521.2,0.7143]
[1757680182993,3.6292,4521.3,4521.2,0.7143]
[1757680184701,3.8323,4521.3,4521.2,0.7143]
[1757680185601,3.4012,4521.3,4521.2,0.7143]
[1757680186103,3.2078,4521.3,4521.2,0.7143]
[1757680186992,0.4214,4521.6,4521.5,0.8347]
[1757680187196,0.1934,4521.6,4521.5,0.8347]
[1757680188806,0.3965,4521.6,4521.5,0.8347]
[1757680189496,3.2078,4521.8,4521.6,0.3166]
[1757680189696,0.1934,4521.7,4521.6,0.7143]
[1757680190514,3.4348,4521.8,4521.7,0.3166]
[1757680190816,3.2078,4521.8,4521.7,0.7143]
[1757680192508,3.4012,4521.8,4521.7,0.7143]
[1757680193011,3.6043,4521.8,4521.7,0.7143]
[1757680193214,3.8728,4521.8,4521.7,0.7143]
[1757680194214,3.6043,4521.8,4521.7,0.7143]
[1757680200413,3.4012,4521.8,4521.7,0.7143]
[1757680201312,0.4078,4522.6,4522.5,0.118]
[1757680201515,0.4078,4522.6,4522.5,0.8368]
[1757680201711,0.6762,4522.6,4522.5,0.8368]
[1757680201923,0.6762,4522.6,4522.5,0.5184]
[1757680202222,0.6762,4522.6,4522.5,0.6364]
[1757680202415,0.227,4522.8,4522.6,0.3095]
[1757680202616,0.429,4522.8,4522.7,0.7188]
[1757680202915,3.4098,4523.1,4523.0,0.118]
[1757680203114,3.6368,4523.1,4523.0,0.8368]
[1757680203819,3.4098,4523.1,4523.0,0.8368]
[1757680204020,3.6156,4523.1,4523.0,0.8368]
[1757680204925,3.4098,4523.1,4523.0,0.8368]
[1757680205125,3.2078,4523.1,4523.0,0.8368]
[1757680205728,3.4098,4523.1,4523.0,0.8368]
[1757680206818,3.6156,4523.1,4523.0,0.8368]
[1757680207118,0.6762,4523.1,4523.0,0.8368]
[1757680208123,0.4078,4523.1,4523.0,0.8368]
[1757680209822,0.4078,4523.1,4522.1,0.39795]
[1757680209823,1.45434098,4523.1,4522.2,0.226]
[1757680210018,0.6762,4522.4,4522.3,0.5184]
[1757680210225,0.6762,4522.4,4522.3,0.3095]
[1757680210419,1.22840539,4522.4,4521.6,0.3095]
[1757680210620,0.2684,4521.6,4521.3,0.3095]
[1757680210816,0.6762,4521.4,4521.3,0.5184]
[1757680211720,0.4078,4521.4,4521.3,0.7188]
[1757680212123,0.6762,4521.4,4521.3,0.7188]
[1757680212420,0.6762,4521.4,4521.3,0.3095]
[1757680212629,0.6762,4521.4,4521.1,0.3095]
[1757680212817,3.884,4521.4,4520.7,0.3095]
[1757680213020,0.4078,4520.8,4520.7,0.7188]
[1757680213227,3.2078,4520.9,4520.7,0.7188]
[1757680213228,3.2078,4520.9,4520.8,0.3095]
[1757680213427,3.2078,4521.7,4521.6,0.2089]
[1757680213623,3.2078,4521.7,4521.6,0.7188]
[1757680213624,3.96216477,4521.7,4521.6,0.7188]
[1757680216431,3.4098,4521.7,4521.6,0.7188]
[1757680217429,3.6156,4521.7,4521.6,0.7188]
[1757680219232,0.4078,4521.7,4521.6,0.7188]
[1757680220930,0.6762,4521.7,4521.6,0.3095]
[1757680222529,0.6762,4521.7,4521.1,0.3095]
[1757680224128,0.6762,4521.7,4520.8,0.226]
[1757680224328,0.4078,4520.9,4520.8,0.7444]
[1757680224926,0.4078,4520.9,4520.8,0.9448]
[1757680228640,0.6759,4520.9,4520.8,0.9448]
[1757680229036,0.6759,4520.9,4520.6,0.2936]
[1757680229237,0.4078,4520.9,4520.6,0.2936]
[1757680229435,0.6832,4520.7,4520.6,0.2936]
[1757680229643,0.4151,4520.7,4520.3,0.2936]
[1757680229839,0.4151,4520.7,4520.2,3.2078]
[1757680229840,0.2681,4520.3,4520.2,3.5014]
[1757680230041,0.6832,4520.3,4520.2,3.5014]
[1757680230339,0.6832,4520.3,4519.0,0.118]
[1757680230340,0.6832,4520.3,4519.9,0.2936]
[1757680230533,0.4151,4520.3,4519.6,0.2936]
[1757680230734,0.6832,4519.7,4519.6,0.4983]
[1757680231238,0.6832,4519.7,4519.6,0.2936]
[1757680231458,0.6832,4519.6,4519.5,0.2936]
[1757680231638,0.6832,4519.6,4519.4,3.2078]
[1757680231639,0.2681,4519.5,4519.4,3.2078]
[1757680231831,0.6832,4519.5,4519.4,3.2078]
[1757680232341,0.6832,4519.5,4519.4,3.5014]
[1757680233038,0.6832,4519.5,4519.4,3.7061]
[1757680233740,0.6832,4519.5,4519.4,3.5014]
[1757680234148,0.6832,4519.5,4519.4,3.7061]
[1757680234445,0.6832,4519.5,4519.4,3.5014]
[1757680235048,0.6832,4519.5,4519.4,3.7061]
[1757680236449,0.6832,4519.5,4519.4,0.4983]
[1757680236638,3.4197,4519.6,4519.5,0.822]
[1757680237737,3.2078,4519.6,4519.5,0.822]
[1757680238844,3.4197,4519.6,4519.5,0.822]
[1757680240036,3.891,4519.6,4519.5,0.2936]
[1757680242447,3.891,4519.6,4519.5,0.4983]
[1757680242644,3.6229,4519.6,4519.5,0.822]
[1757680242850,3.2078,4519.6,4519.5,0.822]
[1757680244939,3.6229,4519.6,4519.5,0.822]
[1757680246554,3.8924,4519.6,4519.5,0.822]
[1757680246753,3.6229,4519.6,4519.5,0.822]
[1757680247050,3.8924,4519.6,4519.5,0.2936]
[1757680247350,3.8924,4519.6,4519.5,0.822]
[1757680247544,3.6229,4519.6,4519.5,0.822]
[1757680247846,3.8924,4519.6,4519.5,0.822]
[1757680248243,3.6229,4519.6,4519.5,0.822]
[1757680249153,3.2078,4519.6,4519.5,0.822]
[1757680250048,0.2119,4519.7,4519.6,0.2936]
[1757680250249,3.4197,4520.1,4520.0,0.822]
[1757680250649,0.2119,4520.1,4520.0,0.822]
[1757680251252,0.226,4520.3,4520.0,0.5284]
[1757680251549,0.226,4520.3,4520.2,0.7029]
[1757680251951,3.2078,4520.7,4520.5,0.1191]
[1757680252253,3.6229,4520.7,4520.6,0.7029]
[1757680252447,4.1184,4520.7,4520.6,0.7029]
[1757680253049,3.4338,4520.7,4520.6,0.7029]
[1757680253247,4.1184,4520.7,4520.6,0.2936]
[1757680253846,4.1184,4520.7,4520.6,0.4983]
[1757680254642,3.2078,4520.7,4520.6,0.7029]
[1757680254850,4.1184,4520.7,4520.6,0.7029]
[1757680255047,4.1184,4520.7,4520.6,0.4983]
[1757680255353,4.1184,4520.7,4520.1,0.2936]
[1757680255758,4.1184,4520.7,4520.6,0.4983]
[1757680255955,3.2078,4520.7,4520.6,0.7029]
[1757680256155,4.1184,4520.7,4520.6,0.7029]
[1757680256559,3.6457,4520.7,4520.6,0.7029]
[1757680256756,3.6229,4520.7,4520.6,0.7029]
[1757680257056,4.1184,4520.7,4520.6,0.2936]
[1757680257457,4.44429928,4520.7,4520.6,0.4983]
[1757680257750,4.1184,4520.7,4520.6,0.4983]
[1757680258355,4.40105187,4520.7,4520.6,0.7029]
[1757680259458,3.97185187,4520.7,4520.6,0.7029]
[1757680259654,4.19785187,4520.7,4520.6,0.7029]
[1757680259851,4.66265187,4520.7,4520.6,0.7029]
[1757680260954,3.75995187,4520.7,4520.6,0.7029]
[1757680261653,3.2078,4520.7,4520.6,0.7029]
[1757680261961,0.0663,4520.8,4520.7,0.294]
[1757680262156,0.0663,4520.8,4520.7,0.6993]
[1757680262355,3.4338,4521.3,4520.7,0.4053]
[1757680262558,0.1997,4520.9,4520.8,0.6993]
[1757680263862,0.6645,4520.9,4520.8,0.294]
[1757680264263,0.6645,4520.9,4520.8,0.5029]
[1757680264856,0.8905,4520.9,4520.1,0.17]
[1757680265062,0.3969,4519.7,4519.6,0.6993]
[1757680267162,0.3969,4519.4,4519.3,0.2089]
[1757680267363,0.3969,4519.4,4519.3,0.294]
[1757680267869,0.6645,4519.4,4519.3,0.294]
[1757680268258,0.6645,4519.4,4519.3,0.5029]
[1757680268460,0.3969,4519.4,4519.3,0.6993]
[1757680268657,0.2676,4519.3,4518.5,0.1245]
[1757680268863,0.1997,4518.6,4518.5,0.5298]
[1757680269264,0.2676,4519.4,4518.6,0.294]
[1757680269962,3.2078,4519.6,4519.5,0.1245]
[1757680270161,3.4075,4519.6,4519.5,0.8238]
[1757680270375,3.2078,4519.6,4519.5,0.8238]
[1757680271156,3.4075,4519.6,4519.5,0.8238]
[1757680271463,3.8723,4519.6,4519.5,0.294]
[1757680271664,3.4075,4519.6,4519.5,0.8238]
[1757680271871,3.2078,4519.6,4519.5,0.8238]
[1757680272664,0.3969,4519.2,4519.1,0.5029]
[1757680272857,0.6645,4519.2,4519.1,0.5029]
[1757680273267,0.3969,4519.2,4519.1,0.6993]
[1757680273465,0.3969,4519.2,4519.1,0.294]
[1757680273466,0.6645,4519.2,4519.1,0.294]
[1757680273665,0.6645,4519.2,4519.1,0.5029]
[1757680273967,0.6645,4519.2,4518.3,31.86]
[1757680273968,4.94488539,4519.2,4518.3,32.154]
[1757680274168,0.3969,4518.4,4518.3,32.154]
[1757680274764,3.2078,4518.7,4518.6,0.6993]
[1757680274963,0.1997,4519.1,4519.0,0.1245]
[1757680275171,0.3969,4519.1,4519.0,0.8238]
[1757680275561,0.6645,4519.1,4519.0,0.8238]
[1757680275860,3.2078,4519.3,4519.0,0.8238]
[1757680276060,3.2078,4519.3,4519.2,0.4053]
[1757680276257,3.2078,4519.3,4519.2,0.6993]
[1757680276465,3.2741,4519.9,4519.5,0.1245]
[1757680276660,3.671,4519.9,4519.8,0.5029]
[1757680276857,3.9386,4519.9,4519.8,0.5029]
[1757680277061,3.6047,4519.9,4519.8,0.6993]
[1757680277263,3.2078,4519.9,4519.8,0.6993]
[1757680277471,3.4075,4519.9,4519.8,0.6993]
[1757680277871,3.8723,4519.9,4519.8,0.6993]
[1757680278471,3.8723,4519.9,4519.8,0.294]
[1757680278668,0.2676,4519.8,4519.6,0.294]
[1757680278966,0.3969,4519.7,4519.6,0.5029]
[1757680279271,0.3969,4519.7,4519.6,0.6993]
[1757680280672,0.6645,4519.7,4519.6,0.6993]
[1757680280862,0.6645,4519.7,4519.6,0.5029]
[1757680281159,0.6645,4519.7,4519.1,0.294]
[1757680281363,0.3969,4519.2,4519.1,0.6993]
[1757680281873,0.3969,4519.2,4519.0,0.1245]
[1757680281874,0.6645,4519.2,4518.6,0.294]
[1757680282170,0.3969,4518.4,4518.3,3.4167]
[1757680282374,0.226,4518.9,4518.3,3.9071]
[1757680282565,0.6229,4518.9,4518.8,0.2089]
[1757680282870,0.6229,4518.9,4518.8,0.5029]
[1757680283672,0.3969,4518.9,4518.8,0.6993]
[1757680284866,0.6645,4518.9,4518.8,0.5029]
[1757680285678,0.3969,4518.6,4518.1,0.294]
[1757680285968,0.6645,4518.2,4518.1,0.294]
[1757680286176,0.3969,4518.2,4518.1,0.6993]
[1757680286373,0.1997,4518.6,4518.5,0.3334]
[1757680286580,0.3969,4518.6,4518.5,0.8238]